fUSD/lending_fUSD_20250311
["ID","MTS","AMOUNT","RATE_DAILY","PERIOD"]
[355944753,1741725047946,-500.0,9.264e-05,2]
[355944754,1741725047955,-500.0,9.264e-05,2]
[355944755,1741725047964,-500.0,9.264e-05,2]
[355944756,1741725047973,-1027.41,9.264e-05,2]
[355944757,1741725047983,-686.77,9.264e-05,2]
[355944758,1741725047991,-500.0,9.264e-05,2]
[355944759,1741725048001,-500.0,9.264e-05,2]
[355944760,1741725048011,-500.0,9.264e-05,2]
[355944761,1741725048021,-500.0,9.264e-05,2]
[355944762,1741725048030,-504.11,9.264e-05,2]
[355944763,1741725048039,-909.05,9.264e-05,2]
[355944764,1741725048049,-1517.41,9.264e-05,2]
[355944765,1741725048059,-974.01,9.264e-05,2]
[355944766,1741725048068,-500.0,9.264e-05,2]
[355944767,1741725048077,-905.16,9.264e-05,2]
[355944768,1741725048086,-622.57,9.264e-05,2]
[355944769,1741725048095,-1543.89,9.264e-05,2]
[355944770,1741725048311,-154.32733738,9.264e-05,2]
[355944771,1741725048321,-842.1,9.264e-05,2]
[355944772,1741725048330,-500.0,9.264e-05,2]
[355944773,1741725048340,-500.0,9.264e-05,2]
[355944774,1741725048349,-500.0,9.264e-05,2]
[355944775,1741725048358,-500.0,9.264e-05,2]
[355944776,1741725048372,-500.0,9.264e-05,2]
[355944777,1741725048382,-500.0,9.264e-05,2]
[355944778,1741725048391,-1237.83,9.264e-05,2]
[355944779,1741725048401,-500.0,9.264e-05,2]
[355944780,1741725048410,-1501.31,9.264e-05,2]
[355944781,1741725048420,-670.33,9.264e-05,2]
[355944782,1741725048429,-500.0,9.264e-05,2]
[355944783,1741725048439,-919.14,9.264e-05,2]
[355944784,1741725048448,-500.0,9.264e-05,2]
[355944785,1741725048458,-500.0,9.264e-05,2]
[355944786,1741725048467,-1455.26,9.264e-05,2]
[355944787,1741725048477,-500.0,9.264e-05,2]
[355944788,1741725048486,-1898.49,9.264e-05,2]
[355944789,1741725048496,-500.0,9.264e-05,2]
[355944790,1741725048505,-582.97,9.264e-05,2]
[355944791,1741725048515,-500.0,9.264e-05,2]
[355944792,1741725048525,-500.0,9.264e-05,2]
[355944793,1741725048535,-500.0,9.264e-05,2]
[355944794,1741725048544,-500.0,9.264e-05,2]
[355944795,1741725048554,-156.65076729,9.264e-05,2]
[355944796,1741725048564,-585.18,9.264e-05,2]
[355944797,1741725048574,-500.0,9.264e-05,2]
[355944798,1741725048583,-617.24,9.264e-05,2]
[355944799,1741725048595,-1117.97,9.264e-05,2]
[355944800,1741725048606,-832.7,9.264e-05,2]
[355944801,1741725048616,-500.0,9.264e-05,2]
[355944802,1741725048627,-1527.38,9.264e-05,2]
[355944803,1741725048637,-500.0,9.264e-05,2]
[355944804,1741725048646,-1375.05,9.264e-05,2]
[355944805,1741725048658,-500.0,9.264e-05,2]
[355944806,1741725048670,-500.0,9.264e-05,2]
[355944807,1741725048680,-1047.45,9.264e-05,2]
[355944808,1741725048690,-500.0,9.264e-05,2]
[355944809,1741725048701,-1355.42,9.264e-05,2]
[355944810,1741725048711,-500.0,9.264e-05,2]
[355944811,1741725048721,-500.0,9.264e-05,2]
[355944812,1741725048732,-500.0,9.264e-05,2]
[355944813,1741725048742,-167.52991117,9.264e-05,2]
[355944814,1741725048752,-752.4,9.264e-05,2]
[355944815,1741725048762,-580.86,9.264e-05,2]
[355944816,1741725048772,-500.0,9.264e-05,2]
[355944817,1741725048782,-500.0,9.264e-05,2]
[355944818,1741725048792,-500.0,9.264e-05,2]
[355944819,1741725048802,-500.0,9.264e-05,2]
[355944820,1741725048812,-500.0,9.264e-05,2]
[355944821,1741725048822,-500.0,9.264e-05,2]
[355944822,1741725048832,-594.95,9.264e-05,2]
[355944823,1741725048843,-500.0,9.264e-05,2]
[355944824,1741725048852,-653.57,9.264e-05,2]
[355944825,1741725048862,-658.47,9.264e-05,2]
[355944826,1741725048872,-1427.68,9.264e-05,2]
[355944827,1741725048881,-500.0,9.264e-05,2]
[355944828,1741725048891,-703.44,9.264e-05,2]
[355944829,1741725048900,-500.0,9.264e-05,2]
[355944830,1741725048909,-500.0,9.264e-05,2]
[355944831,1741725048919,-500.0,9.264e-05,2]
[355944832,1741725048928,-500.0,9.264e-05,2]
[355944833,1741725048937,-843.94,9.264e-05,2]
[355944834,1741725048946,-638.18,9.264e-05,2]
[355944835,1741725048955,-500.0,9.264e-05,2]
[355944836,1741725048965,-756.55,9.264e-05,2]
[355944837,1741725048974,-519.24864941,9.264e-05,2]
[355944838,1741725048983,-983.69,9.264e-05,2]
[355944839,1741725048992,-500.0,9.264e-05,2]
[355944840,1741725049002,-500.0,9.264e-05,2]
[355944841,1741725049012,-737.41,9.264e-05,2]
[355944842,1741725049022,-500.0,9.264e-05,2]
[355944843,1741725049032,-618.0,9.264e-05,2]
[355944844,1741725049041,-1678.67,9.264e-05,2]
[355944845,1741725049052,-296.03019244,9.264e-05,2]
[355944846,1741725049062,-500.0,9.264e-05,2]
[355944847,1741725049071,-500.0,9.264e-05,2]
[355944848,1741725049080,-893.41,9.264e-05,2]
[355944849,1741725049090,-500.0,9.264e-05,2]
[355944850,1741725049100,-500.0,9.264e-05,2]
[355944851,1741725049110,-1020.79,9.264e-05,2]
[355944852,1741725049120,-927.89,9.264e-05,2]
[355944853,1741725049130,-541.06,9.264e-05,2]
[355944854,1741725049139,-714.05,9.264e-05,2]
[355944855,1741725049149,-500.0,9.264e-05,2]
[355944856,1741725049159,-1037.6,9.264e-05,2]
[355944857,1741725049169,-1024.6,9.264e-05,2]
[355944858,1741725049179,-500.0,9.264e-05,2]
[355944859,1741725049189,-465.76021653,9.264e-05,2]
[355944860,1741725049198,-500.0,9.264e-05,2]
[355944861,1741725049208,-500.0,9.264e-05,2]
[355944862,1741725049223,-500.0,9.264e-05,2]
[355944863,1741725049233,-1352.86,9.264e-05,2]
[355944864,1741725049244,-500.0,9.264e-05,2]
[355944865,1741725049254,-500.0,9.264e-05,2]
[355944866,1741725049265,-1391.11,9.265e-05,2]
[355944867,1741725049275,-582.0,9.265e-05,2]
[355944868,1741725049286,-500.0,9.265e-05,2]
[355944869,1741725049296,-500.0,9.265e-05,2]
[355944870,1741725049312,-500.0,9.265e-05,2]
[355944871,1741725049322,-932.43,9.265e-05,2]
[355944872,1741725049333,-590.08,9.265e-05,2]
[355944873,1741725049342,-1370.13,9.265e-05,2]
[355944874,1741725049352,-500.0,9.265e-05,2]
[355944875,1741725049362,-500.0,9.265e-05,2]
[355944876,1741725049372,-679.46,9.265e-05,2]
[355944877,1741725049383,-1588.96,9.265e-05,2]
[355944878,1741725049393,-80560.63008758,9.3e-05,2]
[355944879,1741725049403,-1087.56748417,9.348e-05,2]
[355944880,1741725049414,-700.0,9.4e-05,3]
[355944881,1741725049424,-1149.72224533,9.4e-05,2]
[355944882,1741725049442,-322.27775467,9.4e-05,2]
[355944883,1741725049451,-196.73,9.405e-05,2]
[355944884,1741725049462,-1000.0,9.464e-05,2]
[355944885,1741725049471,-1000.0,9.5e-05,3]
[355944886,1741725049481,-11066.91621612,9.505e-05,2]
[355944887,1741725049493,-1717.58479489,9.505e-05,2]
[355944888,1741725049502,-38.40229039,9.536e-05,2]
[355944889,1741725049528,-838.74770961,9.536e-05,2]
[355944890,1741725049537,-500.0,9.536e-05,2]
[355944891,1741725049547,-500.0,9.536e-05,2]
[355944892,1741725049559,-864.22,9.536e-05,2]
[355944893,1741725049569,-500.0,9.536e-05,2]
[355944894,1741725049579,-500.0,9.536e-05,2]
[355944895,1741725049588,-500.0,9.536e-05,2]
[355944896,1741725049598,-500.0,9.536e-05,2]
[355944897,1741725049607,-523.82,9.536e-05,2]
[355944898,1741725049617,-744.29,9.536e-05,2]
[355944899,1741725049626,-500.0,9.536e-05,2]
[355944900,1741725049636,-1104.65,9.536e-05,2]
[355944901,1741725049646,-500.0,9.536e-05,2]
[355944902,1741725049659,-500.0,9.536e-05,2]
[355944903,1741725049668,-205.55398087,9.536e-05,2]
[355944904,1741725050698,-500.0,8.988e-05,2]
[355944905,1741725050709,-500.0,8.989e-05,2]
[355944906,1741725050719,-1012.0,9.158e-05,2]
[355944907,1741725050728,-376.1,9.262e-05,2]
[355944908,1741725050741,-175.73,9.263e-05,2]
[355944909,1741725050751,-294.44601913,9.536e-05,2]
[355944910,1741725050761,-627.56,9.536e-05,2]
[355944911,1741725050770,-500.0,9.536e-05,2]
[355944912,1741725050780,-500.0,9.536e-05,2]
[355944913,1741725050790,-500.0,9.536e-05,2]
[355944914,1741725050799,-405.50069572,9.536e-05,2]
[355944915,1741725050811,-605.11,9.536e-05,2]
[355944916,1741725050820,-500.0,9.536e-05,2]
[355944917,1741725050830,-1321.33,9.536e-05,2]
[355944918,1741725050839,-500.0,9.536e-05,2]
[355944919,1741725050848,-500.0,9.536e-05,2]
[355944920,1741725050858,-500.0,9.536e-05,2]
[355944921,1741725050867,-1443.54,9.536e-05,2]
[355944922,1741725050876,-561.83622647,9.536e-05,2]
[355944923,1741725050885,-500.0,9.536e-05,2]
[355944924,1741725050895,-500.0,9.536e-05,2]
[355944925,1741725050905,-500.0,9.536e-05,2]
[355944926,1741725050914,-500.0,9.536e-05,2]
[355944927,1741725050923,-500.0,9.536e-05,2]
[355944928,1741725050933,-500.0,9.536e-05,2]
[355944929,1741725050942,-500.0,9.536e-05,2]
[355944930,1741725050951,-516.83,9.536e-05,2]
[355944931,1741725050961,-500.0,9.536e-05,2]
[355944932,1741725050970,-500.0,9.536e-05,2]
[355944933,1741725050979,-500.0,9.536e-05,2]
[355944934,1741725050988,-670.51,9.536e-05,2]
[355944935,1741725050998,-500.0,9.536e-05,2]
[355944936,1741725051007,-38.73069448,9.536e-05,2]
[355944937,1741725051027,-598.87,9.263e-05,2]
[355944938,1741725051037,-461.26930552,9.536e-05,2]
[355944939,1741725051046,-118.72970104,9.536e-05,2]
[355944940,1741725051058,-271.70879344,9.536e-05,2]
[355944941,1741725051069,-723.17150552,9.536e-05,2]
[355944942,1741725051079,-597.85,9.536e-05,2]
[355944943,1741725051089,-419.09938276,9.536e-05,2]
[355944944,1741725051100,-80.90061724,9.536e-05,2]
[355944945,1741725051110,-1113.40834458,9.536e-05,2]
[355944946,1741725051121,-348.87165542,9.536e-05,2]
[355944947,1741725051130,-544.4172482,9.536e-05,2]
[355944948,1741725051140,-1411.9,9.536e-05,2]
[355944949,1741725051152,-647.72,9.536e-05,2]
[355944950,1741725051162,-507.82,9.536e-05,2]
[355944951,1741725051171,-500.0,9.536e-05,2]
[355944952,1741725051181,-500.0,9.536e-05,2]
[355944953,1741725051191,-934.84,9.536e-05,2]
[355944954,1741725051200,-500.0,9.536e-05,2]
[355944955,1741725051210,-500.0,9.536e-05,2]
[355944956,1741725051219,-500.0,9.536e-05,2]
[355944957,1741725051228,-713.23,9.536e-05,2]
[355944958,1741725051238,-500.0,9.536e-05,2]
[355944959,1741725051247,-677.98,9.536e-05,2]
[355944960,1741725051256,-693.96,9.536e-05,2]
[355944961,1741725051266,-500.0,9.536e-05,2]
[355944962,1741725051275,-583.57,9.536e-05,2]
[355944963,1741725051284,-559.95,9.536e-05,2]
[355944964,1741725051294,-500.0,9.536e-05,2]
[355944965,1741725051303,-500.0,9.536e-05,2]
[355944966,1741725051312,-760.06,9.536e-05,2]
[355944967,1741725051322,-500.0,9.536e-05,2]
[355944968,1741725051331,-500.0,9.536e-05,2]
[355944969,1741725051340,-500.0,9.536e-05,2]
[355944970,1741725051350,-559.97,9.536e-05,2]
[355944971,1741725051359,-744.02,9.536e-05,2]
[355944972,1741725051369,-763.77,9.536e-05,2]
[355944973,1741725051378,-146.72109638,9.536e-05,2]
[355944979,1741725127236,2500.0,8.889e-05,2]
[355944980,1741725154459,159.76,8.632e-05,2]
[355944982,1741725237381,1412.65,8.219e-05,2]
[355944983,1741725266518,156.87,8.572e-05,2]
[355944984,1741725266640,156.87,8.597e-05,2]
[355944985,1741725266865,156.87,8.623e-05,2]
[355944986,1741725267130,156.87,8.648e-05,2]
[355944987,1741725267320,156.87,8.673e-05,2]
[355944988,1741725267647,156.87,8.698e-05,2]
[355944989,1741725267873,156.87,8.723e-05,2]
[355944990,1741725268082,156.87,8.749e-05,2]
[355944991,1741725268302,156.87,8.774e-05,2]
[355944992,1741725268523,156.87,8.799e-05,2]
[355944993,1741725268714,156.87,8.824e-05,2]
[355944994,1741725268918,156.87,8.849e-05,2]
[355944995,1741725269136,156.87,8.875e-05,2]
[355944996,1741725269845,156.87,8.9e-05,2]
[355945000,1741725317797,22672.47362963,8e-05,2]
[355945002,1741725413438,1189.89,8.436e-05,2]
[355945003,1741725422650,17864.6033,8.889e-05,2]
[355945004,1741725465683,901.91,8.436e-05,2]
[355945012,1741725624678,297.4374,8.889e-05,2]
[355945023,1741726005087,250.0,8.287e-05,2]
[355945025,1741726051940,400.0,8.9e-05,3]
[355945027,1741726063123,632.84,8.233e-05,2]
[355945031,1741726133925,-156.87,8.925e-05,2]
[355945033,1741726133951,-550.0,8.928e-05,2]
[355945035,1741726133976,-40.75840333,8.928e-05,2]
[355945036,1741726139230,1111.05066078,8.749e-05,2]
[355945038,1741726218124,1355.98,8.219e-05,2]
[355945040,1741726231532,-109.24159667,8.928e-05,2]
[355945041,1741726231541,-150.0,8.944e-05,2]
[355945042,1741726231551,-156.87,8.95e-05,2]
[355945043,1741726231560,-150.0,8.959e-05,2]
[355945044,1741726231569,-156.87,8.975e-05,2]
[355945045,1741726231579,-134.01840333,8.986e-05,2]
[355945046,1741726231697,-15.98159667,8.986e-05,2]
[355945047,1741726231706,-300.0,8.986e-05,2]
[355945048,1741726231716,-220.72827067,8.986e-05,2]
[355945056,1741726237244,1072.17499475,8.806e-05,2]
[355945065,1741726237407,-878.94068618,8.986e-05,2]
[355945067,1741726237417,-5707.35659341,8.987e-05,2]
[355945069,1741726237465,-1476.42,8.987e-05,2]
[355945070,1741726237477,-43951.06400606,8.987e-05,2]
[355945071,1741726237487,-233.14922233,8.987e-05,2]
[355945072,1741726237496,-500.0,8.987e-05,2]
[355945073,1741726237506,-909.32,8.987e-05,2]
[355945074,1741726237515,-500.0,8.987e-05,2]
[355945075,1741726237525,-723.72,8.987e-05,2]
[355945076,1741726237534,-1073.16,8.987e-05,2]
[355945077,1741726237544,-658.31,8.987e-05,2]
[355945078,1741726237553,-1234.41,8.987e-05,2]
[355945079,1741726237563,-1350.93,8.987e-05,2]
[355945080,1741726237572,-750.92,8.987e-05,2]
[355945081,1741726237581,-500.0,8.987e-05,2]
[355945082,1741726237590,-620.42,8.987e-05,2]
[355945083,1741726237600,-1079.25,8.987e-05,2]
[355945084,1741726237609,-500.0,8.988e-05,2]
[355945085,1741726237618,-500.0,8.988e-05,2]
[355945086,1741726237628,-192.25947121,8.988e-05,2]
[355945087,1741726237637,-575.35006084,8.988e-05,2]
[355945088,1741726237646,-870.48,8.988e-05,2]
[355945089,1741726237656,-500.0,8.988e-05,2]
[355945090,1741726237665,-500.0,8.988e-05,2]
[355945091,1741726237675,-500.0,8.988e-05,2]
[355945092,1741726237684,-500.0,8.988e-05,2]
[355945093,1741726237693,-500.0,8.988e-05,2]
[355945094,1741726237703,-500.0,8.988e-05,2]
[355945095,1741726237712,-500.0,8.988e-05,2]
[355945096,1741726237722,-500.47,8.988e-05,2]
[355945097,1741726237733,-500.0,8.988e-05,2]
[355945098,1741726237742,-500.0,8.988e-05,2]
[355945099,1741726237751,-500.0,8.988e-05,2]
[355945100,1741726237760,-500.0,8.988e-05,2]
[355945101,1741726237770,-500.0,8.988e-05,2]
[355945102,1741726237779,-500.0,8.988e-05,2]
[355945103,1741726237789,-500.0,8.988e-05,2]
[355945104,1741726237798,-527.83,8.988e-05,2]
[355945105,1741726237807,-595.3,8.988e-05,2]
[355945106,1741726237816,-702.25,8.988e-05,2]
[355945108,1741726237826,-500.0,8.988e-05,2]
[355945109,1741726237835,-500.0,8.988e-05,2]
[355945110,1741726237844,-500.0,8.988e-05,2]
[355945111,1741726237853,-500.0,8.988e-05,2]
[355945112,1741726237862,-500.0,8.988e-05,2]
[355945113,1741726238187,-500.0,8.988e-05,2]
[355945114,1741726238206,-1239.48,8.988e-05,2]
[355945115,1741726238215,-633.08,8.988e-05,2]
[355945116,1741726238225,-500.0,8.988e-05,2]
[355945117,1741726238234,-500.0,8.988e-05,2]
[355945118,1741726238244,-500.0,8.988e-05,2]
[355945119,1741726238253,-500.0,8.988e-05,2]
[355945120,1741726238262,-500.0,8.988e-05,2]
[355945121,1741726238271,-500.0,8.988e-05,2]
[355945122,1741726238281,-500.0,8.988e-05,2]
[355945123,1741726238290,-500.0,8.988e-05,2]
[355945124,1741726238299,-500.0,8.988e-05,2]
[355945125,1741726238308,-497.93469673,8.988e-05,2]
[355945126,1741726238318,-500.0,8.988e-05,2]
[355945127,1741726238327,-1077.69,8.988e-05,2]
[355945128,1741726238336,-500.0,8.988e-05,2]
[355945129,1741726238345,-500.0,8.988e-05,2]
[355945130,1741726238354,-602.83,8.988e-05,2]
[355945131,1741726238364,-772.29,8.988e-05,2]
[355945132,1741726238373,-500.0,8.988e-05,2]
[355945133,1741726238382,-1027.75,8.988e-05,2]
[355945134,1741726238392,-709.05,8.988e-05,2]
[355945135,1741726238401,-1323.16,8.988e-05,2]
[355945136,1741726238410,-500.0,8.988e-05,2]
[355945137,1741726238420,-733.19,8.988e-05,2]
[355945138,1741726238429,-500.0,8.988e-05,2]
[355945139,1741726238438,-500.0,8.988e-05,2]
[355945140,1741726238447,-1084.52,8.988e-05,2]
[355945141,1741726238457,-500.0,8.988e-05,2]
[355945142,1741726238466,-837.46,8.988e-05,2]
[355945143,1741726238475,-562.59,8.988e-05,2]
[355945144,1741726238485,-500.0,8.988e-05,2]
[355945145,1741726238495,-500.0,8.988e-05,2]
[355945146,1741726238504,-500.0,8.988e-05,2]
[355945147,1741726238514,-1122.93,8.988e-05,2]
[355945148,1741726238523,-500.0,8.988e-05,2]
[355945149,1741726238532,-3122.6,8.988e-05,2]
[355945150,1741726238542,-854.26,8.988e-05,2]
[355945151,1741726238552,-1290.4,8.988e-05,2]
[355945152,1741726238561,-500.0,8.988e-05,2]
[355945153,1741726238571,-719.01,8.988e-05,2]
[355945154,1741726238581,-670.47,8.988e-05,2]
[355945155,1741726238590,-500.0,8.988e-05,2]
[355945156,1741726238599,-1151.05,8.988e-05,2]
[355945157,1741726238608,-1286.87,8.988e-05,2]
[355945158,1741726238618,-500.0,8.988e-05,2]
[355945159,1741726238628,-500.0,8.988e-05,2]
[355945160,1741726238637,-500.0,8.988e-05,2]
[355945161,1741726238648,-500.0,8.988e-05,2]
[355945162,1741726238657,-500.0,8.988e-05,2]
[355945163,1741726238666,-500.0,8.988e-05,2]
[355945164,1741726238676,-4005.27,8.988e-05,2]
[355945165,1741726238685,-500.0,8.988e-05,2]
[355945166,1741726238695,-500.0,8.988e-05,2]
[355945167,1741726238703,-500.0,8.988e-05,2]
[355945168,1741726238713,-1337.66,8.988e-05,2]
[355945169,1741726238722,-500.0,8.988e-05,2]
[355945170,1741726238732,-1214.63,8.988e-05,2]
[355945171,1741726238741,-1338.08,8.988e-05,2]
[355945172,1741726238750,-1340.17,8.988e-05,2]
[355945173,1741726238760,-718.54,8.988e-05,2]
[355945174,1741726238769,-500.0,8.988e-05,2]
[355945175,1741726238778,-500.0,8.988e-05,2]
[355945176,1741726238787,-1195.07172,8.988e-05,2]
[355945177,1741726238797,-500.0,8.988e-05,2]
[355945178,1741726238806,-824.07,8.988e-05,2]
[355945179,1741726238815,-500.0,8.988e-05,2]
[355945180,1741726238825,-500.0,8.988e-05,2]
[355945181,1741726238834,-764.68,8.988e-05,2]
[355945182,1741726238843,-500.0,8.988e-05,2]
[355945183,1741726238852,-500.0,8.988e-05,2]
[355945184,1741726238862,-566.83,8.988e-05,2]
[355945185,1741726238871,-163.243176,8.988e-05,2]
[355945186,1741726238881,-500.0,8.988e-05,2]
[355945187,1741726238891,-1550.93,8.988e-05,2]
[355945188,1741726238901,-500.0,8.988e-05,2]
[355945189,1741726238910,-1147.09,8.988e-05,2]
[355945190,1741726238920,-500.0,8.988e-05,2]
[355945191,1741726238929,-153.801571,8.988e-05,2]
[355945192,1741726238938,-671.16,8.988e-05,2]
[355945193,1741726238948,-303.80267206,8.988e-05,2]
[355945194,1741726238957,-754.67,8.988e-05,2]
[355945195,1741726238967,-152.872762,8.988e-05,2]
[355945196,1741726238976,-500.0,8.988e-05,2]
[355945197,1741726238985,-688.79,8.988e-05,2]
[355945198,1741726238996,-500.0,8.988e-05,2]
[355945199,1741726239005,-912.88,8.988e-05,14]
[355945200,1741726239015,-500.0,8.988e-05,2]
[355945201,1741726239024,-500.0,8.988e-05,2]
[355945202,1741726239033,-500.0,8.988e-05,2]
[355945203,1741726239046,-500.0,8.988e-05,2]
[355945204,1741726239055,-500.0,8.988e-05,2]
[355945205,1741726239065,-526.88,8.988e-05,2]
[355945206,1741726239074,-500.0,8.988e-05,2]
[355945207,1741726239085,-697.4,8.988e-05,2]
[355945208,1741726239095,-1043.52,8.988e-05,2]
[355945209,1741726239104,-1384.78,8.988e-05,2]
[355945210,1741726239113,-500.0,8.988e-05,2]
[355945211,1741726239124,-740.93,8.988e-05,2]
[355945212,1741726239134,-500.0,8.988e-05,2]
[355945213,1741726239143,-3907.45,8.988e-05,2]
[355945214,1741726239153,-500.0,8.988e-05,2]
[355945215,1741726239162,-1522.16,8.988e-05,2]
[355945216,1741726239171,-710.94,8.988e-05,2]
[355945217,1741726239180,-521.21,8.988e-05,2]
[355945218,1741726239190,-500.0,8.988e-05,2]
[355945219,1741726239200,-1364.14,8.988e-05,2]
[355945220,1741726239210,-500.0,8.988e-05,2]
[355945221,1741726239219,-716.5,8.988e-05,2]
[355945222,1741726239229,-1350.88,8.988e-05,2]
[355945223,1741726239239,-1190.45,8.988e-05,2]
[355945224,1741726239248,-779.66,8.988e-05,2]
[355945225,1741726239257,-524.94,8.988e-05,2]
[355945226,1741726239267,-1070.01,8.988e-05,2]
[355945227,1741726239276,-500.0,8.988e-05,2]
[355945228,1741726239286,-530.48,8.988e-05,2]
[355945229,1741726239295,-1547.82,8.988e-05,2]
[355945231,1741726239305,-500.0,8.988e-05,2]
[355945233,1741726239314,-500.0,8.988e-05,2]
[355945234,1741726239324,-500.0,8.988e-05,2]
[355945235,1741726239333,-530.12,8.988e-05,2]
[355945236,1741726239342,-500.0,8.988e-05,2]
[355945237,1741726239352,-2015.42,8.988e-05,2]
[355945238,1741726239361,-500.0,8.988e-05,2]
[355945239,1741726239370,-1980.86,8.988e-05,2]
[355945240,1741726239380,-500.0,8.988e-05,2]
[355945241,1741726239390,-910.02,8.988e-05,2]
[355945242,1741726239400,-500.0,8.988e-05,2]
[355945243,1741726239409,-1942.48,8.988e-05,2]
[355945244,1741726239419,-1248.36,8.988e-05,2]
[355945245,1741726239433,-1588.37,8.988e-05,2]
[355945246,1741726239443,-1047.78,8.988e-05,2]
[355945247,1741726239452,-2431.5,8.988e-05,2]
[355945248,1741726239461,-500.0,8.988e-05,2]
[355945249,1741726239470,-500.0,8.988e-05,2]
[355945250,1741726239480,-1270.97,8.988e-05,2]
[355945251,1741726239489,-721.18,8.988e-05,2]
[355945252,1741726239498,-500.0,8.988e-05,2]
[355945253,1741726239507,-500.0,8.988e-05,2]
[355945254,1741726239517,-630.68,8.988e-05,2]
[355945255,1741726239526,-500.0,8.988e-05,2]
[355945256,1741726239535,-994.72,8.988e-05,2]
[355945257,1741726239546,-500.0,8.988e-05,2]
[355945258,1741726239555,-500.0,8.988e-05,2]
[355945259,1741726239564,-916.37,8.988e-05,2]
[355945260,1741726239574,-4474.69,8.988e-05,2]
[355945261,1741726239584,-500.0,8.988e-05,2]
[355945262,1741726239593,-713.46,8.988e-05,2]
[355945263,1741726239603,-500.0,8.988e-05,2]
[355945264,1741726239611,-684.58,8.988e-05,2]
[355945265,1741726239621,-500.0,8.988e-05,2]
[355945266,1741726239630,-1735.66,8.988e-05,2]
[355945267,1741726239640,-1365.3,8.988e-05,2]
[355945268,1741726239650,-500.0,8.988e-05,2]
[355945269,1741726239660,-924.95,8.988e-05,2]
[355945270,1741726239669,-500.0,8.988e-05,2]
[355945271,1741726239679,-1374.75,8.988e-05,2]
[355945272,1741726239689,-500.0,8.988e-05,2]
[355945273,1741726239698,-500.0,8.988e-05,2]
[355945274,1741726239707,-1238.86,8.988e-05,2]
[355945275,1741726239717,-500.0,8.988e-05,2]
[355945276,1741726239726,-1027.73,8.988e-05,2]
[355945277,1741726239735,-500.0,8.988e-05,2]
[355945278,1741726239745,-500.0,8.988e-05,2]
[355945279,1741726239754,-845.83,8.988e-05,2]
[355945280,1741726239763,-1169.92,8.988e-05,2]
[355945281,1741726239772,-500.0,8.988e-05,2]
[355945282,1741726239782,-572.73865578,8.988e-05,2]
[355945283,1741726239791,-1040.5,8.988e-05,2]
[355945284,1741726239800,-733.16,8.988e-05,2]
[355945285,1741726239809,-500.0,8.988e-05,2]
[355945286,1741726239818,-546.47,8.988e-05,2]
[355945287,1741726239827,-1183.77,8.988e-05,2]
[355945288,1741726239837,-500.0,8.988e-05,2]
[355945289,1741726239846,-500.0,8.988e-05,2]
[355945290,1741726239855,-500.0,8.988e-05,2]
[355945291,1741726239865,-500.0,8.988e-05,2]
[355945292,1741726239874,-500.0,8.988e-05,2]
[355945293,1741726239884,-1126.4,8.988e-05,2]
[355945294,1741726239894,-500.0,8.988e-05,2]
[355945295,1741726239903,-500.0,8.988e-05,2]
[355945296,1741726239912,-1273.12,8.988e-05,2]
[355945297,1741726239922,-500.0,8.988e-05,2]
[355945298,1741726239931,-500.0,8.988e-05,2]
[355945299,1741726239941,-500.0,8.988e-05,2]
[355945300,1741726239950,-500.0,8.988e-05,2]
[355945301,1741726239960,-1231.3,8.988e-05,2]
[355945302,1741726239969,-500.0,8.988e-05,2]
[355945303,1741726239979,-891.6,8.988e-05,2]
[355945304,1741726239988,-833.36,8.988e-05,2]
[355945305,1741726239997,-500.0,8.988e-05,2]
[355945306,1741726240006,-999.69,8.988e-05,2]
[355945307,1741726240016,-505.11,8.988e-05,2]
[355945308,1741726240025,-500.0,8.988e-05,2]